bitfinex/quotes_BTCUSD_20220103
["timestamp","ask_amount","ask_price","bid_price","bid_amount"]
[1641187642549,0.01732,46966.0,46964.0,1.778]
[1641187642950,0.0426,46965.0,46964.0,1.778]
[1641187644655,0.0426,46965.0,46964.0,2.123657]
[1641187645755,0.0426,46965.0,46964.0,2.12553165]
[1641187648005,0.0426,46965.0,46964.0,3.3328525]
[1641187648809,0.07143309,46965.0,46964.0,2.9871955]
[1641187649010,0.6252,46965.0,46964.0,2.9871955]
[1641187649209,0.6252,46965.0,46964.0,1.77987465]
[1641187649414,0.7752,46965.0,46964.0,1.77987465]
[1641187649715,1.08512823,46965.0,46964.0,1.77987465]
[1641187650556,1.28512823,46965.0,46964.0,1.77987465]
[1641187650954,1.31404403,46965.0,46964.0,1.77987465]
[1641187651355,1.08521094,46965.0,46964.0,1.77987465]
[1641187651954,0.72528271,46965.0,46964.0,1.77987465]
[1641187652154,0.04268271,46965.0,46964.0,1.77987465]
[1641187653156,0.04268271,46965.0,46964.0,2.36586737]
[1641187653555,8.271e-05,46965.0,46964.0,2.71281945]
[1641187653816,0.00869271,46965.0,46964.0,2.71281945]
[1641187654504,0.00869271,46965.0,46964.0,3.5990044]
[1641187656005,0.00869271,46965.0,46964.0,3.33412027]
[1641187656205,0.00369271,46965.0,46964.0,3.33412027]
[1641187657206,0.00740271,46966.0,46965.0,0.345657]
[1641187657561,0.00740271,46966.0,46965.0,2.123657]
[1641187657755,0.00740271,46966.0,46965.0,3.33095054]
[1641187659760,0.00740271,46966.0,46965.0,3.32595054]
[1641187660162,0.00740271,46966.0,46965.0,3.42595054]
[1641187660760,0.00240271,46966.0,46965.0,3.42595054]
[1641187661414,0.00240271,46966.0,46965.0,3.32595054]
[1641187661610,0.00247868,46966.0,46965.0,3.42595054]
[1641187662515,0.0002,46974.0,46968.0,0.345657]
[1641187662716,0.0003,46980.0,46969.0,4.12466254]
[1641187662717,0.0022,46979.0,46969.0,4.12466254]
[1641187662914,0.0003,46980.0,46979.0,0.0022]
[1641187662915,0.0002,46980.0,46979.0,0.0022]
[1641187663110,0.0002,46980.0,46979.0,2.125654]
[1641187664010,0.0001,46980.0,46979.0,2.225654]
[1641187664211,0.0001,46980.0,46979.0,2.27689763]
[1641187664413,0.0001,46980.0,46979.0,2.22689763]
[1641187664615,0.0001,46980.0,46979.0,2.12689763]
[1641187665058,0.0001,46980.0,46979.0,2.22689763]
[1641187665462,0.0001,46980.0,46979.0,2.27689763]
[1641187665663,0.0001,46980.0,46979.0,2.55391196]
[1641187666263,0.0002,46983.0,46979.0,2.76391196]
[1641187666464,0.0002,46983.0,46980.0,0.68388039]
[1641187666667,0.0001,46983.0,46982.0,0.00124483]
[1641187666865,0.0001,46983.0,46982.0,2.44456516]
[1641187667268,0.0001,46986.0,46983.0,0.3468747]
[1641187667468,0.0001,46986.0,46984.0,2.23120276]
[1641187667666,0.0001,46986.0,46984.0,2.45236967]
[1641187668065,0.0001,46986.0,46984.0,2.55236967]
[1641187668668,0.0001,46986.0,46985.0,1.56174228]
[1641187668911,0.0001,46986.0,46985.0,3.38204228]
[1641187669113,0.0001,46986.0,46985.0,3.48204228]
[1641187669413,0.0001,46986.0,46985.0,3.98204228]
[1641187669610,0.0001,46987.0,46985.0,4.16523728]
[1641187669811,0.0001,46987.0,46986.0,1.92188188]
[1641187670011,0.0001,46987.0,46986.0,3.74218188]
[1641187670211,0.0001,46988.0,46986.0,3.90176488]
[1641187670415,0.0001,46988.0,46987.0,0.84581108]
[1641187670611,0.0001,46990.0,46988.0,2.21278603]
[1641187670813,0.0001,46990.0,46989.0,2.60711438]
[1641187671212,0.00822643,46994.0,46989.0,4.05405171]
[1641187671412,0.00822643,46994.0,46991.0,0.5307278]
[1641187671612,0.26347092,47002.0,46993.0,0.345654]
[1641187671815,0.149602,47010.0,47002.0,0.14363363]
[1641187672015,0.149602,47010.0,47006.0,0.1]
[1641187672213,0.149602,47010.0,47007.0,2.123054]
[1641187672413,0.149602,47010.0,47007.0,2.12425765]
[1641187672689,0.146602,47010.0,47008.0,0.67434044]
[1641187672890,0.146602,47010.0,47009.0,2.123054]
[1641187673087,0.146602,47010.0,47009.0,2.108154]
[1641187673286,0.0002,47015.0,47010.0,0.053184]
[1641187673485,0.0002,47015.0,47012.0,0.12116691]
[1641187673686,0.0002,47015.0,47012.0,2.24386191]
[1641187674289,0.0002,47015.0,47012.0,2.57254412]
[1641187674488,0.0001,47020.0,47013.0,0.345395]
[1641187674689,0.00682605,47024.0,47017.0,0.00128125]
[1641187674890,0.0004,47028.0,47017.0,0.00128125]
[1641187674891,0.0004,47032.0,47028.0,0.1997]
[1641187675086,0.0004,47032.0,47028.0,2.05143]
[1641187675287,0.0004,47032.0,47028.0,2.396825]
[1641187675486,0.0003,47035.0,47028.0,2.396825]
[1641187675487,0.1996,47038.0,47037.0,0.28226469]
[1641187675693,0.0002,47038.0,47037.0,2.122395]
[1641187675889,0.0002,47038.0,47037.0,1.777]
[1641187676516,0.0002,47038.0,47037.0,2.122395]
[1641187676716,0.27964867,47038.0,47037.0,2.122395]
[1641187676919,0.27964867,47038.0,47037.0,1.777]
[1641187677418,0.27964867,47038.0,47037.0,1.77887005]
[1641187677816,0.61168167,47038.0,47037.0,1.77887005]
[1641187678015,0.65428167,47038.0,47037.0,0.99467005]
[1641187678416,0.053176,47035.0,47033.0,0.00822527]
[1641187678619,0.7114358,47034.0,47024.0,0.39794498]
[1641187678816,0.9614358,47034.0,47029.0,0.63788]
[1641187679017,1.582766,47030.0,47029.0,0.63788]
[1641187679218,1.13,47028.0,47023.0,0.0012545]
[1641187679419,1.13,47028.0,47002.0,0.14363363]
[1641187679420,0.24804816,47019.0,47009.0,0.1]
[1641187679617,0.30874686,47026.0,47010.0,0.00125273]
[1641187679618,0.0426,47018.0,47010.0,0.00125273]
[1641187679817,0.0426,47017.0,47010.0,0.00125273]
[1641187680066,0.04289212,47017.0,47016.0,0.4683233]
[1641187680265,0.0426,47017.0,47016.0,0.4683233]
[1641187680466,0.00029212,47017.0,47016.0,0.4683233]
[1641187680667,0.00029212,47017.0,47016.0,0.81498381]
[1641187682368,0.00016876,47018.0,47017.0,0.345395]
[1641187682769,0.00016876,47018.0,47017.0,0.00118281]
[1641187682969,0.57276876,47018.0,47017.0,0.00118281]
[1641187683268,0.38816376,47018.0,47017.0,0.10118281]
[1641187684108,0.38816376,47018.0,47017.0,0.00118281]
[1641187684409,0.04276876,47018.0,47017.0,0.00118281]
[1641187685208,0.36562024,47018.0,47017.0,0.00118281]
[1641187685412,0.76101524,47018.0,47017.0,0.00118281]
[1641187685608,0.2,47016.0,47012.0,0.00822571]
[1641187685812,0.555366,47013.0,47012.0,0.00822571]
[1641187686017,0.59157176,47012.0,46995.0,0.04591]
[1641187686211,0.25373828,47003.0,46995.0,0.04591]
[1641187686412,0.168574,47003.0,46999.0,0.1]
[1641187686611,0.0426,47003.0,47002.0,0.24363363]
[1641187687412,0.0426,47003.0,47002.0,0.58902863]
[1641187687652,0.0426,47003.0,47002.0,0.24363363]
[1641187687854,0.0426,47003.0,47002.0,0.14363363]
[1641187688051,0.387995,47003.0,47002.0,0.24363363]
[1641187688251,0.0426,47003.0,47002.0,0.24363363]
[1641187688455,0.00820908,47010.0,47003.0,0.00118316]
[1641187688657,0.00820908,47010.0,47008.0,0.1]
[1641187689059,0.00820908,47010.0,47009.0,0.345395]
[1641187689258,0.00820908,47010.0,47009.0,0.77557463]
[1641187689558,0.00820908,47010.0,47009.0,1.18204079]
[1641187690353,0.30763703,47023.0,47010.0,0.053179]
[1641187690554,0.05317802,47025.0,47022.0,0.41426486]
[1641187690757,0.10635395,47031.0,47024.0,0.1]
[1641187690953,0.10635395,47031.0,47022.0,0.41426486]
[1641187691157,0.00018258,47027.0,47025.0,0.1]
[1641187691421,0.00018258,47027.0,47026.0,0.63794]
[1641187691616,0.29313612,47032.0,47026.0,0.70871]
[1641187691813,0.00018258,47027.0,47026.0,0.70871]
[1641187692012,0.00018258,47027.0,47026.0,1.08870558]
[1641187692713,0.00018258,47027.0,47026.0,0.70871]
[1641187693315,0.00030186,47027.0,47026.0,0.70871]
[1641187693512,0.31574959,47027.0,47026.0,0.63794]
[1641187693914,0.46574959,47027.0,47026.0,0.63912257]
[1641187694113,0.41574959,47027.0,47026.0,0.63912257]
[1641187695357,0.00030186,47027.0,47026.0,0.63912257]
[1641187695560,0.30901451,47027.0,47026.0,0.63912257]
[1641187695759,0.31624656,47027.0,47026.0,0.63912257]
[1641187695959,0.31624656,47027.0,47026.0,0.65912257]
[1641187696157,0.00030186,47027.0,47026.0,0.65912257]
[1641187696361,0.63624441,47027.0,47026.0,0.65912257]
[1641187696760,0.34569686,47027.0,47026.0,0.65912257]
[1641187697062,0.21269189,47033.0,47026.0,0.65912257]
[1641187697063,0.0002,47038.0,47027.0,0.343195]
[1641187697262,0.0002,47038.0,47037.0,0.1]
[1641187697561,0.0002,47038.0,47037.0,0.8117641]
[1641187697760,0.0002,47038.0,47037.0,1.1571591]
[1641187697957,0.0002,47038.0,47037.0,0.96837446]
[1641187698156,0.0002,47038.0,47037.0,1.15183137]
[1641187698558,0.0002,47038.0,47037.0,1.03066446]
[1641187698823,0.0002,47038.0,47037.0,0.6840541]
[1641187699016,0.0002,47038.0,47037.0,0.6217641]
[1641187699612,0.61558753,47038.0,47037.0,0.6229464]
[1641187699813,1.2583211,47038.0,47037.0,0.6229464]
[1641187700012,1.3583211,47038.0,47037.0,0.6229464]
[1641187700418,0.053171,47035.0,47033.0,0.00820841]
[1641187700623,0.165366,47034.0,47033.0,0.00820841]
[1641187700817,0.065366,47034.0,47033.0,0.00820841]
[1641187701014,0.165366,47034.0,47033.0,0.00820841]
[1641187701419,0.115366,47034.0,47033.0,0.00820841]
[1641187701818,0.74569026,47034.0,47033.0,0.64604841]
[1641187702217,0.410639,47034.0,47033.0,0.63784]
[1641187702658,0.71574627,47034.0,47033.0,0.63784]
[1641187702860,0.66574627,47034.0,47033.0,0.63784]
[1641187704459,0.81574627,47034.0,47033.0,0.63784]
[1641187706902,1.00574627,47034.0,47033.0,0.63784]
[1641187707304,1.35574627,47034.0,47033.0,0.63784]
[1641187707502,1.35574627,47034.0,47029.0,0.00820849]
[1641187707700,0.345273,47030.0,47029.0,0.00820849]
[1641187707902,0.587873,47030.0,47029.0,0.64610849]
[1641187708100,1.868873,47030.0,47029.0,0.64610849]
[1641187708300,2.42249866,47030.0,47029.0,0.6379]
[1641187708501,3.14726195,47030.0,47029.0,0.6379]
[1641187709202,2.01626195,47030.0,47029.0,0.6379]
[1641187710279,3.14726195,47030.0,47029.0,0.6379]
[1641187710483,1.56547318,47030.0,47029.0,0.6379]
[1641187711280,1.56447318,47030.0,47029.0,0.6379]
[1641187712086,1.56447318,47030.0,47025.0,0.00823312]
[1641187712087,1.261795,47027.0,47025.0,0.00823312]
[1641187712284,1.0036791,47026.0,47025.0,0.00823312]
[1641187712682,2.2346791,47026.0,47025.0,0.64618312]
[1641187712883,2.2346791,47026.0,47015.0,0.00120129]
[1641187713083,2.2346791,47026.0,47004.0,0.58709778]
[1641187713084,0.2,47023.0,47004.0,0.58709778]
[1641187713284,0.23644351,47013.0,47008.0,0.0012466]
[1641187713586,0.24915522,47010.0,47009.0,0.00032864]
[1641187713816,0.24915522,47010.0,47009.0,0.63849864]
[1641187714006,0.29175522,47010.0,47009.0,0.63849864]
[1641187714406,1.51184956,47010.0,47009.0,0.63849864]
[1641187714611,1.03712256,47010.0,47009.0,0.63849864]
[1641187715006,1.37905492,47010.0,47009.0,0.63849864]
[1641187715506,1.37905492,47010.0,47009.0,0.21281664]
[1641187716108,1.37905492,47010.0,47005.0,0.00823348]
[1641187716109,0.2,47008.0,47005.0,0.00823348]
[1641187716307,0.94295973,47006.0,47005.0,0.00823348]
[1641187716506,0.98555973,47006.0,47005.0,0.00823348]
[1641187716706,0.2,47004.0,47002.0,0.14363363]
[1641187716907,0.97456757,47003.0,47002.0,0.14363363]
[1641187717109,1.39959914,47003.0,47002.0,0.14363363]
[1641187717753,1.89677973,47003.0,47002.0,0.14363363]
[1641187718352,1.45281214,47003.0,47002.0,0.78189363]
[1641187721915,2.63381214,47003.0,47002.0,0.78189363]
[1641187722413,2.27595066,47003.0,47002.0,0.78189363]
[1641187722814,1.09495066,47003.0,47002.0,0.78189363]
[1641187724212,1.4429705,47003.0,47002.0,0.78189363]
[1641187724412,1.09495066,47003.0,47002.0,0.78189363]
[1641187725049,2.22603924,47003.0,47002.0,0.78189363]
[1641187727854,2.27603924,47003.0,47002.0,0.78189363]
[1641187730614,1.14503924,47003.0,47002.0,0.78189363]
[1641187730812,0.87000767,47003.0,47002.0,0.78189363]
[1641187731818,0.44117458,47003.0,47002.0,0.78189363]
[1641187732020,8.858e-05,47003.0,47002.0,0.78189363]
[1641187732217,8.858e-05,47003.0,47002.0,1.12837498]
[1641187732672,8.858e-05,47003.0,47002.0,0.78310198]
[1641187733872,8.858e-05,47003.0,47002.0,0.78189363]
[1641187734272,8.858e-05,47003.0,47002.0,0.75566289]
[1641187736176,0.05328658,47003.0,47002.0,0.75566289]
[1641187737417,8.858e-05,47003.0,47002.0,0.75566289]
[1641187739719,0.05328658,47003.0,47002.0,0.75566289]
[1641187741356,0.05288658,47003.0,47002.0,0.75566289]
[1641187741755,0.05288658,47003.0,47002.0,0.75379031]
[1641187743254,0.04788658,47003.0,47002.0,0.75379031]
[1641187745716,0.70923472,47003.0,47002.0,0.75379031]
[1641187745922,1.88718866,47003.0,47002.0,0.75379031]
[1641187746117,3.33718866,47003.0,47002.0,0.75379031]
[1641187746318,1.67302489,47003.0,47002.0,0.32805431]
[1641187746515,3.09302489,47003.0,47002.0,0.130795]
[1641187746716,0.66536682,46994.0,46992.0,0.0082336]
[1641187746920,1.837873,46993.0,46992.0,0.0082336]
[1641187747117,1.937873,46993.0,46992.0,0.6466336]
[1641187747315,0.687873,46993.0,46992.0,0.6466336]
[1641187747560,0.687873,46993.0,46985.0,0.04592]
[1641187747561,0.2,46991.0,46985.0,0.04592]
[1641187747763,0.545273,46987.0,46985.0,0.04592]
[1641187747962,0.98559042,46987.0,46985.0,0.04592]
[1641187748167,1.47794399,46987.0,46986.0,0.65848]
[1641187748366,2.10655596,46986.0,46985.0,0.0001]
[1641187748566,1.88465596,46986.0,46973.0,0.58249778]
[1641187748760,1.53938296,46986.0,46985.0,9.129e-05]
[1641187748961,0.2,46984.0,46973.0,0.58249778]
[1641187749165,2.11410609,46982.0,46981.0,0.0001]
[1641187749371,2.11410609,46982.0,46956.0,0.02]
[1641187749372,0.38211314,46964.0,46956.0,0.02]
[1641187749665,0.637873,46963.0,46956.0,0.02]
[1641187749862,0.762081,46963.0,46956.0,0.02]
[1641187750062,0.755563,46963.0,46956.0,0.02]
[1641187750263,0.414017,46961.0,46956.0,0.02]
[1641187750466,0.26722486,46959.0,46956.0,0.02]
[1641187750668,0.441123,46958.0,46956.0,0.02]
[1641187751168,0.441123,46958.0,46956.0,0.01600247]
[1641187751427,0.441123,46958.0,46957.0,0.00118432]
[1641187752128,0.541123,46958.0,46957.0,0.00118432]
[1641187752724,0.541123,46958.0,46957.0,0.64006432]
[1641187754025,0.24585,46958.0,46957.0,0.64006432]
[1641187754325,0.14585,46958.0,46957.0,0.64006432]
[1641187755977,0.45770125,46966.0,46957.0,0.97599347]
[1641187756174,0.45770125,46966.0,46959.0,0.00123311]
[1641187756381,0.45770125,46966.0,46960.0,0.984113]
[1641187756572,0.45770125,46966.0,46961.0,0.67019366]
[1641187756770,0.45770125,46966.0,46962.0,0.984083]
[1641187757173,0.45770125,46966.0,46963.0,0.40007772]
[1641187757371,0.45770125,46966.0,46964.0,0.984063]
[1641187757574,0.45770125,46966.0,46965.0,1.07956959]
[1641187757774,0.45770125,46966.0,46965.0,1.30361259]
[1641187758173,0.45770125,46966.0,46965.0,0.984043]
[1641187759023,0.45770125,46966.0,46965.0,0.63877]
[1641187761925,0.45770125,46966.0,46965.0,1.01989126]
[1641187762124,0.45770125,46966.0,46965.0,0.63877]
[1641187762325,0.45770125,46966.0,46965.0,0.6399541]
[1641187763673,0.1667535,46993.0,46974.0,0.42042166]
[1641187763865,0.00120687,46993.0,46978.0,0.00129545]
[1641187764066,0.053219,46987.0,46979.0,0.63858]
[1641187764267,1.3133808,46996.0,46979.0,0.63858]
[1641187764467,0.67480505,46995.0,46992.0,0.4088949]
[1641187764667,0.29662762,46994.0,46993.0,0.63839]
[1641187764866,0.64190062,46994.0,46993.0,0.63839]
[1641187765067,0.345273,46994.0,46993.0,0.63839]
[1641187765368,0.053212,46994.0,46993.0,0.63839]
[1641187765867,0.00823229,46999.0,46993.0,0.63839]
[1641187766326,0.00823229,46999.0,46994.0,0.345273]
[1641187766514,0.26091646,46999.0,46995.0,0.63837]
[1641187766715,0.053205,46996.0,46995.0,0.63837]
[1641187767814,0.053205,46996.0,46995.0,0.63955336]
[1641187774619,0.00830787,46999.0,46995.0,0.98602645]
[1641187774820,0.00830787,46999.0,46998.0,0.00129692]
[1641187775018,0.00830787,46999.0,46998.0,1.03489992]
[1641187775220,0.00830787,46999.0,46998.0,0.98489992]
[1641187775422,0.00830787,46999.0,46998.0,1.27508932]
[1641187776020,0.00830787,46999.0,46998.0,0.98489992]
[1641187776219,7.558e-05,46999.0,46998.0,0.98489992]
[1641187777023,7.558e-05,46999.0,46998.0,0.63962692]
[1641187778060,7.558e-05,46999.0,46998.0,0.63833]
[1641187778866,0.57577637,46999.0,46998.0,0.63833]
[1641187779066,1.94937637,46999.0,46998.0,0.63833]
[1641187779268,1.16364937,46999.0,46998.0,0.63833]
[1641187779664,0.38794858,46999.0,46998.0,0.63833]
[1641187780064,0.70303567,46999.0,46998.0,0.63833]
[1641187780463,0.38794858,46999.0,46998.0,0.63833]
[1641187781827,0.04267558,46999.0,46998.0,0.63833]
[1641187782425,0.38794858,46999.0,46998.0,0.63333]
[1641187782724,0.43794858,46999.0,46998.0,0.63333]
[1641187783525,0.63794858,46999.0,46998.0,0.63333]
[1641187783925,0.73794858,46999.0,46998.0,0.63333]
[1641187784125,0.53794858,46999.0,46998.0,0.63333]
[1641187785371,0.43794858,46999.0,46998.0,0.63333]
[1641187786474,0.63794858,46999.0,46998.0,0.63333]
[1641187786876,0.43794858,46999.0,46998.0,0.63333]
[1641187787675,0.38794858,46999.0,46998.0,0.63333]
[1641187788676,0.43794858,46999.0,46998.0,0.63333]
[1641187789806,0.79437086,46999.0,46998.0,0.63333]
[1641187790205,0.89437086,46999.0,46998.0,0.63333]
[1641187792209,0.69437086,46999.0,46998.0,0.63333]
[1641187793478,0.74437086,46999.0,46998.0,0.63333]
[1641187793675,0.74437086,46999.0,46998.0,0.63451327]
[1641187794677,0.69115953,46999.0,46998.0,0.63451327]
[1641187795883,1.97215953,46999.0,46998.0,0.35871726]
[1641187796082,0.306444,46997.0,46994.0,0.0082111]
[1641187796329,0.2,46995.0,46994.0,0.0082111]
[1641187796516,0.637873,46995.0,46994.0,0.6465811]
[1641187797013,1.00654079,46995.0,46994.0,0.6465811]
[1641187797616,0.80654079,46995.0,46994.0,0.6465811]
[1641187797816,0.75975779,46995.0,46994.0,0.6465811]
[1641187798018,0.70975779,46995.0,46994.0,0.6465811]
[1641187798217,0.70975779,46995.0,46994.0,0.63837]
[1641187798816,0.75975779,46995.0,46994.0,0.63837]
[1641187799018,0.85975779,46995.0,46994.0,0.63837]
[1641187799217,1.08859088,46995.0,46994.0,0.63837]
[1641187799420,2.26959088,46995.0,46994.0,0.63837]
[1641187800688,2.35716088,46995.0,46994.0,0.212563]
[1641187801500,1.22616088,46995.0,46994.0,0.212563]
[1641187801687,0.3591632,46994.0,46990.0,0.00821117]
[1641187801889,0.253223,46991.0,46990.0,0.00821117]
[1641187802087,0.741096,46991.0,46990.0,0.00821117]
[1641187802288,0.24888079,46984.0,46977.0,0.34285084]
[1641187802488,0.0426,46983.0,46978.0,0.63856]
[1641187803289,0.053224,46981.0,46978.0,0.63856]
[1641187803487,0.0426,46980.0,46978.0,0.63856]
[1641187804320,0.0426,46980.0,46979.0,0.345273]
[1641187804516,0.0426,46980.0,46979.0,0.63858]
[1641187805321,0.0426,46980.0,46979.0,1.0917539]
[1641187805322,0.095822,46980.0,46979.0,1.0917539]
[1641187805519,0.0426,46980.0,46979.0,1.43594254]
[1641187806718,0.053222,46981.0,46979.0,1.09066954]
[1641187808165,0.053222,46981.0,46980.0,0.345273]
[1641187808367,0.053219,46983.0,46980.0,1.29695451]
[1641187808567,0.10644339,46990.0,46980.0,1.29695451]
[1641187808568,0.106436,46988.0,46980.0,1.29695451]
[1641187808768,0.0426,47000.0,46987.0,0.00128995]
[1641187808967,0.05328268,46999.0,46988.0,0.63954]
[1641187809167,7.558e-05,46999.0,46990.0,0.053206]
[1641187809367,7.558e-05,46999.0,46994.0,0.00372076]
[1641187809567,0.053205,46997.0,46995.0,1.02539772]
[1641187809767,7.558e-05,46999.0,46996.0,0.66033074]
[1641187809967,7.558e-05,46999.0,46997.0,0.63942]
[1641187810570,0.05327658,46999.0,46997.0,0.63942]
[1641187812023,7.558e-05,46999.0,46997.0,0.63942]
[1641187813329,0.053205,46998.0,46997.0,0.63942]
[1641187813926,0.053205,46998.0,46997.0,0.984693]
[1641187814124,0.053205,46998.0,46997.0,0.63942]
[1641187814725,0.053205,46998.0,46997.0,0.64314076]
[1641187815565,7.558e-05,46999.0,46997.0,0.98841376]
[1641187815765,7.558e-05,46999.0,46998.0,0.345273]
[1641187816069,7.558e-05,46999.0,46998.0,0.984683]
[1641187816264,7.558e-05,46999.0,46998.0,1.30838125]
[1641187816667,7.558e-05,46999.0,46998.0,0.984683]
[1641187817073,7.558e-05,46999.0,46998.0,1.33895276]
[1641187817268,7.558e-05,46999.0,46998.0,1.38895276]
[1641187817466,7.558e-05,46999.0,46998.0,1.48895276]
[1641187817667,7.558e-05,46999.0,46998.0,1.38895276]
[1641187818474,7.558e-05,46999.0,46998.0,1.33895276]
[1641187819361,0.002,47009.0,46998.0,1.33895276]
[1641187819561,0.002,47009.0,46998.0,1.04687476]
[1641187819763,0.053195,47004.0,46998.0,1.04687476]
[1641187819962,0.053195,47004.0,47001.0,0.00372076]
[1641187820162,0.053195,47004.0,47002.0,0.63935]
[1641187821162,0.053195,47004.0,47003.0,0.4077135]
[1641187821368,0.053195,47004.0,47003.0,1.0470535]
[1641187821563,7.303e-05,47004.0,47003.0,1.0470535]
[1641187822576,0.05326803,47004.0,47003.0,1.0470535]
[1641187825277,0.05326803,47004.0,47003.0,1.05077426]
[1641187827419,0.05326803,47004.0,47003.0,1.0519574]
[1641187828121,0.05326803,47004.0,47003.0,1.39846791]
[1641187828523,0.05326803,47004.0,47003.0,1.3972304]
[1641187828721,0.05326803,47004.0,47003.0,1.0519574]
[1641187831587,7.303e-05,47004.0,47003.0,1.3972304]
[1641187831985,0.00014751,47004.0,47003.0,1.3972304]
[1641187836220,0.00014751,47004.0,47003.0,1.4472304]
[1641187836427,0.00014751,47004.0,47003.0,1.44846784]
[1641187836619,0.00014751,47004.0,47003.0,1.54846784]
[1641187837220,0.00014751,47004.0,47003.0,1.9264269]
[1641187837419,0.00014751,47004.0,47003.0,1.9796089]
[1641187837876,0.00014751,47004.0,47003.0,1.72281675]
[1641187838277,0.00014751,47004.0,47003.0,2.30524299]
[1641187838876,0.00014751,47004.0,47003.0,1.72281675]
[1641187839076,0.00014751,47004.0,47003.0,1.60164984]
[1641187840076,0.00014751,47004.0,47003.0,1.72281675]
[1641187840678,0.00014751,47004.0,47003.0,1.61334711]
[1641187840879,0.00014751,47004.0,47003.0,1.66334711]
[1641187841718,0.00014751,47004.0,47003.0,1.61334711]
[1641187842818,0.00014751,47004.0,47003.0,1.56016511]
[1641187843318,0.00014751,47004.0,47003.0,1.51016511]
[1641187844619,0.00014751,47004.0,47003.0,1.51016623]
[1641187845469,0.053185,47013.0,47004.0,1.135273]
[1641187845666,0.053185,47013.0,47006.0,0.28982145]
[1641187845866,7.303e-05,47008.0,47007.0,1.30363703]
[1641187846069,7.303e-05,47008.0,47007.0,1.38871626]
[1641187848471,7.303e-05,47008.0,47007.0,1.47604333]
[1641187848838,7.303e-05,47008.0,47007.0,1.42604333]
[1641187849625,7.303e-05,47008.0,47007.0,1.42722637]
[1641187849827,7.303e-05,47008.0,47007.0,1.10814234]
[1641187851029,7.303e-05,47008.0,47007.0,1.43363999]
[1641187851230,7.303e-05,47008.0,47007.0,1.1118631]
[1641187851430,7.303e-05,47008.0,47007.0,1.43142273]
[1641187851832,7.303e-05,47008.0,47007.0,1.53142273]
[1641187852432,7.303e-05,47008.0,47007.0,1.2118631]
[1641187852676,7.303e-05,47008.0,47007.0,1.52727354]
[1641187852875,7.303e-05,47008.0,47007.0,1.42727354]
[1641187853274,7.303e-05,47008.0,47007.0,1.1118631]
[1641187853878,0.04825603,47015.0,47007.0,1.1118631]
[1641187854177,0.04825603,47015.0,47014.0,0.40112562]
[1641187854377,0.04825603,47015.0,47014.0,1.38558862]
[1641187854580,0.04838384,47015.0,47014.0,1.38558862]
[1641187855182,0.04812779,47015.0,47014.0,1.38558862]
[1641187855379,0.04812779,47015.0,47014.0,1.3867715]
[1641187856344,0.04812779,47015.0,47014.0,1.39049226]
[1641187858436,0.0004,47028.0,47025.0,0.92365661]
[1641187858646,0.28700824,47030.0,47025.0,1.56392397]
[1641187858837,0.0003,47035.0,47031.0,0.28680824]
[1641187859038,0.0003,47035.0,47031.0,1.27104124]
[1641187859237,0.0162,47034.0,47032.0,1.785273]
[1641187859437,0.0162,47034.0,47033.0,1.06923701]
[1641187859636,0.0162,47034.0,47033.0,1.12045606]
[1641187860176,0.0162,47034.0,47033.0,1.44356143]
[1641187860378,0.0162,47034.0,47033.0,1.54356143]
[1641187860974,0.0162,47034.0,47033.0,1.45852742]
[1641187861175,0.0162,47034.0,47033.0,0.98660444]
[1641187861575,0.0162,47034.0,47033.0,0.98846482]
[1641187861775,0.0162,47034.0,47033.0,0.9903252]
[1641187861975,0.0162,47034.0,47033.0,0.9900252]
[1641187862176,0.0162,47034.0,47033.0,0.9897252]
[1641187862575,0.0162,47034.0,47033.0,0.9894252]
[1641187862777,0.0162,47034.0,47033.0,0.9891252]
[1641187863178,0.0162,47034.0,47033.0,0.9885252]
[1641187863578,0.0162,47034.0,47033.0,0.9882252]
[1641187863832,0.0162,47034.0,47033.0,1.32998121]
[1641187864021,0.0162,47034.0,47033.0,1.18915393]
[1641187864420,0.0162,47034.0,47033.0,1.18885393]
[1641187864624,0.0162,47034.0,47033.0,1.24170093]
[1641187864821,0.0162,47034.0,47033.0,1.24140093]
[1641187865121,0.0162,47034.0,47033.0,1.24110093]
[1641187865322,0.0162,47034.0,47033.0,1.24080093]
[1641187865525,0.0162,47034.0,47033.0,1.03915393]
[1641187865721,0.0162,47034.0,47033.0,1.03885393]
[1641187866022,0.0162,47034.0,47033.0,1.03855393]
[1641187866422,0.0162,47034.0,47033.0,1.13915454]
[1641187866621,0.0162,47034.0,47033.0,1.13915479]
[1641187866823,0.0001,47036.0,47035.0,0.34654045]
[1641187867022,0.0001,47036.0,47035.0,1.44768579]
[1641187867224,0.0001,47036.0,47035.0,1.44738579]
[1641187867425,0.0001,47036.0,47035.0,1.44894617]
[1641187867669,0.0001,47036.0,47035.0,1.4510574]
[1641187867866,0.0001,47036.0,47035.0,1.4507574]
[1641187868071,0.0001,47036.0,47035.0,1.5004574]
[1641187868266,0.0001,47036.0,47035.0,1.5001574]
[1641187868466,0.0001,47036.0,47035.0,1.5530034]
[1641187868868,0.0001,47036.0,47035.0,1.4995574]
[1641187869069,0.0001,47036.0,47035.0,1.13761065]
[1641187869269,0.0001,47036.0,47035.0,1.13731065]
[1641187869469,0.0001,47036.0,47035.0,1.13671065]
[1641187869673,0.0001,47036.0,47035.0,1.13641065]
[1641187869872,0.0001,47036.0,47035.0,1.13581065]
[1641187870071,0.0001,47036.0,47035.0,1.13551065]
[1641187870274,0.0001,47036.0,47035.0,1.13491065]
[1641187870472,0.0001,47036.0,47035.0,0.98878376]
[1641187870678,0.0001,47036.0,47035.0,0.98848376]
[1641187870877,0.0001,47037.0,47036.0,1.56]
[1641187871078,0.0004,47050.0,47049.0,0.07198428]
[1641187871354,0.0003,47050.0,47049.0,2.15729428]
[1641187871536,0.0003,47050.0,47049.0,2.50225028]
[1641187871742,0.0003,47050.0,47049.0,2.50315231]
[1641187871935,0.0003,47050.0,47049.0,2.87177909]
[1641187872139,0.0004,47055.0,47049.0,2.87243535]
[1641187872336,0.0069,47054.0,47051.0,0.05312871]
[1641187872535,0.0069,47054.0,47053.0,0.34608719]
[1641187872737,0.0069,47054.0,47053.0,0.98719757]
[1641187872938,0.00761205,47054.0,47053.0,0.98843676]
[1641187873135,0.00761205,47054.0,47053.0,1.08813676]
[1641187873338,0.0003,47057.0,47053.0,1.08813676]
[1641187873538,0.00818191,47062.0,47058.0,0.38237359]
[1641187873836,0.31582334,47060.0,47059.0,0.61387]
[1641187874038,0.36082334,47060.0,47059.0,0.61357]
[1641187874234,0.40852334,47060.0,47059.0,0.61327]